fUSD/lending_fUSD_20240521
["ID","MTS","AMOUNT","RATE_DAILY","PERIOD"]
[327656666,1716285558230,-500.0,0.00035479,6]
[327656667,1716285558286,-1379.78,0.00035479,6]
[327656668,1716285558344,-500.0,0.00035479,6]
[327656669,1716285558400,-525.15988663,0.00035479,6]
[327656670,1716285558455,-1379.78,0.00035479,6]
[327656671,1716285558511,-500.0,0.00035479,6]
[327656672,1716285558566,-1379.78,0.00035479,6]
[327656673,1716285558621,-1379.78,0.00035479,6]
[327656674,1716285558677,-500.0,0.00035479,6]
[327656675,1716285558732,-409.43813827,0.00035479,6]
[327656676,1716285558935,-1379.78,0.00035479,6]
[327656677,1716285558992,-1379.78,0.00035479,6]
[327656678,1716285559051,-857.5202799,0.00035479,6]
[327656679,1716285561162,-409.02,0.00032415,20]
[327656680,1716285561220,-500.0,0.00035304,6]
[327656681,1716285561277,-500.0,0.00035304,6]
[327656682,1716285561333,-502.55992501,0.00035304,6]
[327656683,1716285561390,-500.0,0.00035304,6]
[327656684,1716285561445,-500.0,0.00035304,6]
[327656685,1716285561728,-500.0,0.00035304,6]
[327656686,1716285561787,-500.0,0.00035304,6]
[327656687,1716285561846,-500.0,0.00035304,6]
[327656688,1716285561904,-500.0,0.00035304,6]
[327656689,1716285561961,-505.62785889,0.00035304,6]
[327656690,1716285562017,-500.0,0.00035304,6]
[327656691,1716285562071,-504.48518068,0.00035304,6]
[327656692,1716285562125,-500.0,0.00035304,6]
[327656693,1716285562179,-504.81847513,0.00035304,6]
[327656694,1716285562233,-500.0,0.00035304,6]
[327656695,1716285562285,-187.9076828,0.00035304,6]
[327656696,1716285562344,-500.0,0.00035304,6]
[327656697,1716285562400,-500.0,0.00035304,6]
[327656698,1716285562456,-500.0,0.00035304,6]
[327656699,1716285562513,-500.0,0.00035304,6]
[327656700,1716285562568,-500.0,0.00035304,6]
[327656701,1716285562623,-579.45,0.00035304,6]
[327656702,1716285562679,-500.0,0.00035304,6]
[327656703,1716285562736,-500.0,0.00035304,6]
[327656704,1716285562962,-500.0,0.00035304,6]
[327656705,1716285563018,-500.0,0.00035304,6]
[327656706,1716285563076,-598.41,0.00035304,6]
[327656707,1716285563130,-500.0,0.00035304,6]
[327656708,1716285563187,-500.0,0.00035304,6]
[327656709,1716285563245,-616.08,0.00035304,6]
[327656710,1716285563303,-1012.75437527,0.00035304,6]
[327656711,1716285563360,-500.0,0.00035304,6]
[327656712,1716285563416,-614.58,0.00035304,6]
[327656713,1716285563474,-500.0,0.00035304,6]
[327656714,1716285563532,-500.0,0.00035304,6]
[327656715,1716285563590,-500.0,0.00035304,6]
[327656716,1716285563646,-500.0,0.00035304,6]
[327656717,1716285563703,-500.0,0.00035304,6]
[327656718,1716285563759,-500.0,0.00035304,6]
[327656719,1716285563817,-500.0,0.00035304,6]
[327656720,1716285563876,-500.0,0.00035304,6]
[327656721,1716285563938,-502.7918502,0.00035304,6]
[327656722,1716285563998,-500.0,0.00035304,6]
[327656723,1716285564055,-500.0,0.00035304,6]
[327656724,1716285564271,-500.0,0.00035304,6]
[327656725,1716285564329,-500.0,0.00035304,6]
[327656726,1716285564385,-500.0,0.00035304,6]
[327656727,1716285564442,-290.17,0.00035414,6]
[327656728,1716285564500,-563.44,0.00035414,6]
[327656729,1716285564558,-576.79,0.00035414,6]
[327656730,1716285564615,-266.67,0.00035414,6]
[327656731,1716285564671,-509.72,0.00035414,6]
[327656732,1716285564727,-500.0,0.00035414,6]
[327656733,1716285564784,-201.43,0.00035414,6]
[327656734,1716285564841,-500.0,0.00035414,6]
[327656735,1716285564897,-500.0,0.00035414,6]
[327656736,1716285564955,-500.0,0.00035414,6]
[327656737,1716285565011,-500.0,0.00035414,6]
[327656738,1716285565068,-500.0,0.00035414,6]
[327656739,1716285565124,-362.91,0.00035414,6]
[327656740,1716285565180,-500.0,0.00035414,6]
[327656741,1716285565234,-500.0,0.00035414,6]
[327656742,1716285565289,-500.0,0.00035414,6]
[327656743,1716285565487,-500.0,0.00035414,6]
[327656744,1716285565545,-500.0,0.00035414,6]
[327656745,1716285565604,-500.0,0.00035414,6]
[327656746,1716285565661,-500.0,0.00035414,6]
[327656747,1716285565718,-500.0,0.00035414,6]
[327656748,1716285565776,-536.49,0.00035414,6]
[327656749,1716285565833,-500.0,0.00035414,6]
[327656750,1716285565895,-60969.91362914,0.00035478,19]
[327656751,1716285565957,-151.0,0.00035478,7]
[327656752,1716285566015,-151.0,0.00035478,7]
[327656753,1716285566073,-151.0,0.00035478,7]
[327656754,1716285566130,-522.2597201,0.00035479,6]
[327656755,1716285566186,-1379.78,0.00035479,6]
[327656756,1716285566244,-1379.78,0.00035479,6]
[327656757,1716285566303,-1379.78,0.00035479,6]
[327656758,1716285566360,-1379.78,0.00035479,6]
[327656759,1716285566416,-1379.78,0.00035479,6]
[327656760,1716285566472,-1379.78,0.00035479,6]
[327656761,1716285566527,-1379.78,0.00035479,6]
[327656762,1716285566727,-1379.78,0.00035479,6]
[327656763,1716285566783,-1379.78,0.00035479,6]
[327656764,1716285566845,-1379.78,0.00035479,6]
[327656765,1716285566904,-500.0,0.00035479,6]
[327656766,1716285566962,-1379.78,0.00035479,6]
[327656767,1716285567019,-500.0,0.00035479,6]
[327656768,1716285567078,-1379.78,0.00035479,6]
[327656769,1716285567133,-500.0,0.00035479,6]
[327656770,1716285567190,-1379.78,0.00035479,6]
[327656771,1716285567246,-500.0,0.00035479,6]
[327656772,1716285567302,-1379.78,0.00035479,6]
[327656773,1716285567360,-500.0,0.00035479,6]
[327656774,1716285567419,-1379.91980298,0.00035479,6]
[327656775,1716285567477,-500.0,0.00035479,6]
[327656776,1716285567533,-500.0,0.00035479,6]
[327656777,1716285567590,-500.0,0.00035479,6]
[327656778,1716285567646,-500.0,0.00035479,6]
[327656779,1716285567705,-500.0,0.00035479,6]
[327656780,1716285567762,-500.0,0.00035479,6]
[327656781,1716285567977,-500.0,0.00035479,6]
[327656782,1716285568033,-909.15,0.00035479,6]
[327656783,1716285568087,-500.0,0.00035479,6]
[327656784,1716285568143,-1478.37,0.00035479,6]
[327656785,1716285568198,-909.15,0.00035479,6]
[327656786,1716285568252,-500.0,0.00035479,6]
[327656787,1716285568319,-500.0,0.00035479,6]
[327656788,1716285568379,-1478.37,0.00035479,6]
[327656789,1716285568438,-500.0,0.00035479,6]
[327656790,1716285568496,-909.15,0.00035479,6]
[327656791,1716285568555,-909.15,0.00035479,6]
[327656792,1716285568611,-500.0,0.00035479,6]
[327656793,1716285568668,-1478.37,0.00035479,6]
[327656794,1716285568724,-500.0,0.00035479,6]
[327656795,1716285568780,-909.15,0.00035479,6]
[327656796,1716285568839,-500.0,0.00035479,6]
[327656797,1716285568895,-1478.37,0.00035479,6]
[327656798,1716285568951,-909.15,0.00035479,6]
[327656799,1716285569007,-500.0,0.00035479,6]
[327656800,1716285569209,-1478.37,0.00035479,6]
[327656801,1716285569266,-1509.94,0.00035479,6]
[327656802,1716285569324,-909.15,0.00035479,6]
[327656803,1716285569382,-500.0,0.00035479,6]
[327656804,1716285569438,-1478.37,0.00035479,6]
[327656805,1716285569495,-1509.94,0.00035479,6]
[327656806,1716285569553,-909.15,0.00035479,6]
[327656807,1716285569610,-500.0,0.00035479,6]
[327656808,1716285569670,-1478.37,0.00035479,6]
[327656809,1716285569728,-1509.94,0.00035479,6]
[327656810,1716285569787,-909.15,0.00035479,6]
[327656811,1716285569847,-500.0,0.00035479,6]
[327656812,1716285569908,-1478.37,0.00035479,6]
[327656813,1716285569966,-1509.94,0.00035479,6]
[327656814,1716285570027,-909.15,0.00035479,6]
[327656815,1716285570085,-500.0,0.00035479,6]
[327656816,1716285570143,-1478.37,0.00035479,6]
[327656817,1716285570198,-500.0,0.00035479,6]
[327656818,1716285570253,-909.15,0.00035479,6]
[327656819,1716285570308,-1509.94,0.00035479,6]
[327656820,1716285570547,-500.0,0.00035479,6]
[327656821,1716285570604,-1478.37,0.00035479,6]
[327656822,1716285570660,-909.15,0.00035479,6]
[327656823,1716285570718,-1509.94,0.00035479,6]
[327656824,1716285570775,-500.0,0.00035479,6]
[327656825,1716285570831,-909.15,0.00035479,6]
[327656826,1716285570885,-1509.94,0.00035479,6]
[327656827,1716285570942,-578.49591941,0.00035479,6]
[327656828,1716285571002,-909.15,0.00035479,6]
[327656829,1716285571060,-1509.94,0.00035479,6]
[327656830,1716285571117,-1478.37,0.00035479,6]
[327656831,1716285571175,-909.15,0.00035479,6]
[327656832,1716285571231,-1509.94,0.00035479,6]
[327656833,1716285571285,-1478.37,0.00035479,6]
[327656834,1716285571339,-909.15,0.00035479,6]
[327656835,1716285571395,-1509.94,0.00035479,6]
[327656836,1716285571449,-1478.37,0.00035479,6]
[327656837,1716285571503,-909.15,0.00035479,6]
[327656838,1716285571558,-1509.94,0.00035479,6]
[327656839,1716285571760,-500.0,0.00035479,6]
[327656840,1716285571820,-1478.37,0.00035479,6]
[327656841,1716285571878,-1509.94,0.00035479,6]
[327656842,1716285571933,-909.15,0.00035479,6]
[327656843,1716285571994,-1509.94,0.00035479,6]
[327656844,1716285572060,-1478.37,0.00035479,6]
[327656845,1716285572135,-1509.94,0.00035479,6]
[327656846,1716285572191,-1478.37,0.00035479,6]
[327656847,1716285572244,-1509.94,0.00035479,6]
[327656848,1716285572300,-909.15,0.00035479,6]
[327656849,1716285572356,-1478.37,0.00035479,6]
[327656850,1716285572411,-1509.94,0.00035479,6]
[327656851,1716285572472,-909.15,0.00035479,6]
[327656852,1716285572529,-1478.37,0.00035479,6]
[327656853,1716285572585,-1509.94,0.00035479,6]
[327656854,1716285572641,-909.15,0.00035479,6]
[327656855,1716285572697,-1478.37,0.00035479,6]
[327656856,1716285572753,-1509.94,0.00035479,6]
[327656857,1716285572809,-909.15,0.00035479,6]
[327656858,1716285573004,-1478.37,0.00035479,6]
[327656859,1716285573062,-1509.94,0.00035479,6]
[327656860,1716285573117,-909.15,0.00035479,6]
[327656861,1716285573171,-1478.37,0.00035479,6]
[327656862,1716285573227,-1509.94,0.00035479,6]
[327656863,1716285573283,-909.29663091,0.00035479,6]
[327656864,1716285573339,-1509.94,0.00035479,6]
[327656865,1716285573394,-1478.37,0.00035479,6]
[327656866,1716285573449,-1509.94,0.00035479,6]
[327656867,1716285573506,-1478.37,0.00035479,6]
[327656868,1716285573562,-1509.94,0.00035479,6]
[327656869,1716285573618,-1478.55507096,0.00035479,6]
[327656870,1716285573673,-1510.03093415,0.00035479,6]
[327656871,1716285573730,-500.0,0.00035479,6]
[327656872,1716285573785,-530.31844763,0.00035479,6]
[327656873,1716285573841,-500.0,0.00035479,6]
[327656874,1716285573895,-500.0,0.00035479,6]
[327656875,1716285573951,-500.0,0.00035479,6]
[327656876,1716285574005,-500.0,0.00035479,6]
[327656877,1716285574210,-500.0,0.00035479,6]
[327656878,1716285574265,-511.7590616,0.00035479,6]
[327656879,1716285574323,-500.0,0.00035479,6]
[327656880,1716285574378,-500.0,0.00035479,6]
[327656881,1716285574434,-500.0,0.00035479,6]
[327656882,1716285574489,-500.0,0.00035479,6]
[327656883,1716285574546,-500.0,0.00035479,6]
[327656884,1716285574603,-500.0,0.00035479,6]
[327656885,1716285574657,-500.0,0.00035479,6]
[327656886,1716285574711,-500.0,0.00035479,6]
[327656887,1716285574771,-1007.8,0.00035479,6]
[327656888,1716285574826,-500.0,0.00035479,6]
[327656889,1716285574882,-500.0,0.00035479,6]
[327656890,1716285574938,-1007.8,0.00035479,6]
[327656891,1716285574996,-500.0,0.00035479,6]
[327656892,1716285575052,-1007.8,0.00035479,6]
[327656893,1716285575107,-195.48313995,0.00035479,6]
[327656894,1716285575162,-1007.8,0.00035479,6]
[327656895,1716285575217,-1007.8,0.00035479,6]
[327656896,1716285575441,-1007.8,0.00035479,6]
[327656897,1716285575499,-1007.8,0.00035479,6]
[327656898,1716285575555,-1007.8,0.00035479,6]
[327656899,1716285575609,-516.0302691,0.00035479,6]
[327656900,1716285575666,-1007.8,0.00035479,6]
[327656901,1716285575721,-1007.8,0.00035479,6]
[327656902,1716285575777,-1007.8,0.00035479,6]
[327656903,1716285575834,-1007.8,0.00035479,6]
[327656904,1716285575890,-1007.8,0.00035479,6]
[327656905,1716285575946,-538.93202609,0.00035479,6]
[327656906,1716285939176,-406.11577146,0.00017257,2]
[327656907,1716286035743,-17.38817949,0.00017257,2]
[327656908,1716286035765,-423.50395095,0.00017259,2]
[327656909,1716286035786,-235.76793888,0.00017807,2]
[327656910,1716286049177,-187.73601207,0.00017807,2]
[327656911,1716286049197,-150.0,0.00019723,2]
[327656912,1716286049218,-1025.23628381,0.00019724,2]
[327656913,1716286049236,-3197.82573238,0.00019726,2]
[327656926,1716286231953,-386.53426762,0.00019726,2]
[327656929,1716286231962,-173.94,0.00026035,2]
[327656932,1716286231971,-499.99,0.00027089,2]
[327656934,1716286231981,-390.72923236,0.00031345,4]
[327656939,1716286232141,-178.2779954,0.00031345,4]
[327656940,1716286232151,-989.27,0.00031346,2]
[327656941,1716286232162,-156.2071351,0.00032169,7]
[327656942,1716286232171,-298.74,0.00032255,2]
[327656943,1716286232180,-156.2071351,0.00032342,7]
[327656944,1716286232190,-155.95810749,0.00032344,7]
[327656945,1716286232199,-210.0,0.0003235,2]
[327656946,1716286232208,-400.0,0.00032415,2]
[327656947,1716286232217,-1050.40405851,0.00032415,2]
[327656948,1716286232229,-442.96594149,0.00032415,2]
[327656949,1716286232238,-1804.91,0.00032579,2]
[327656950,1716286232248,-170.62406013,0.00032591,7]
[327656951,1716286232257,-2637.0,0.000328,4]
[327656952,1716286232267,-151.68933873,0.00032877,7]
[327656953,1716286232276,-215.94,0.00032936,120]
[327656954,1716286232286,-210.0,0.0003312,2]
[327656955,1716286232295,-2781.85,0.00033126,2]
[327656956,1716286232304,-154.74831959,0.00033138,7]
[327656957,1716286232313,-250.0,0.0003315,115]
[327656958,1716286232322,-160.59,0.00033157,120]
[327656961,1716286232333,-600.0,0.00033277,2]
[327656963,1716286232354,-195.48762453,0.00033288,7]
[327656965,1716286232363,-195.48762454,0.00033317,7]
[327656967,1716286232373,-153.63,0.000335,2]
[327656969,1716286232383,-153.63,0.000335,2]
[327656972,1716286232393,-250.0,0.00033599,2]
[327656973,1716286232403,-989.27,0.0003361,2]
[327656976,1716286232413,-2716.14776588,0.00033866,2]
[327656978,1716286232426,-753.98701703,0.00033866,2]
[327656981,1716286232467,-531.80120502,0.00033866,2]
[327657030,1716286238018,-1755.06401207,0.00033866,2]
[327657031,1716286238028,-5132.0,0.00033866,2]
[327657032,1716286238038,-289.0,0.00033866,2]
[327657033,1716286238048,-1465.0,0.00033866,2]
[327657034,1716286238058,-3163.65787822,0.00033866,2]
[327657037,1716286238231,-658.999999,0.00033866,2]
[327657038,1716286238243,-1380.30283729,0.00033866,2]
[327657039,1716286238255,-1991.99543765,0.00033866,2]
[327657040,1716286238268,-424.88047589,0.00033866,2]
[327657041,1716286238280,-774.86355698,0.00033866,2]
[327657042,1716286238441,-29490.29981497,0.00033866,2]
[327657044,1716286238451,-4191.84770373,0.00033879,4]
[327657047,1716286238464,-1235.47644,0.00033879,4]
[327657049,1716286238476,-1017.8135551,0.00033879,4]
[327657063,1716286240380,-771.22407973,0.00033879,4]
[327657064,1716286240425,-444.74490446,0.00033879,4]
[327657065,1716286240438,-355.82482266,0.00033879,4]
[327657066,1716286240590,-2485.01629199,0.00033879,4]
[327657103,1716286241166,-784.27119897,0.00033879,4]
[327657104,1716286241180,-5878.8,0.00033879,4]
[327657105,1716286241191,-471.21626085,0.00033879,4]
[327657173,1716286243588,-16146.43443745,0.00033879,4]
[327657174,1716286243597,-210.0,0.0003388,2]
[327657175,1716286243607,-189.0,0.00034021,2]
[327657176,1716286243617,-156.2071351,0.00034351,7]
[327657177,1716286243627,-151.68933873,0.00034444,7]
[327657178,1716286243637,-7477.38,0.00034521,5]
[327657179,1716286243647,-1112.80311282,0.00034598,5]
[327657180,1716286243657,-210.0,0.0003465,2]
[327657181,1716286243667,-150.0,0.00034665,2]
[327657182,1716286243676,-150.0,0.00034665,2]
[327657183,1716286243685,-150.0,0.00034665,2]
[327657184,1716286243694,-150.0,0.00034665,2]
[327657185,1716286243704,-150.0,0.00034665,2]
[327657186,1716286243713,-155.0,0.00034766,4]
[327657187,1716286243723,-1124.87015786,0.00034768,5]
[327657188,1716286243732,-1060.96628315,0.00034768,5]
[327657189,1716286243741,-1629.1476076,0.00034768,5]
[327657190,1716286243751,-151.68933873,0.0003479,7]
[327657191,1716286243760,-153.67101316,0.00034796,7]
[327657192,1716286243772,-1852.87100984,0.0003488,30]
[327657195,1716286254351,-106711.97582511,0.0003488,30]
[327657196,1716286254361,-150.25232363,0.0003491,7]
[327657197,1716286254370,-152.39399964,0.00034963,7]
[327657198,1716286254380,-298.74,0.00034995,2]
[327657199,1716286254389,-13542.4375,0.00034998,2]
[327657200,1716286254399,-1000.0,0.00034998,2]
[327657201,1716286254408,-505.01803,0.0003512,2]
[327657202,1716286254417,-153.71756079,0.00035121,3]
[327657203,1716286254427,-298.34066432,0.00035121,4]
[327657204,1716286254436,-150.0,0.00035151,2]
[327657205,1716286254445,-1639.5973,0.00035204,2]
[327657206,1716286254456,-150.0,0.00035205,2]
[327657207,1716286254465,-156.2071351,0.00035233,7]
[327657208,1716286254474,-150.0,0.00035272,2]
[327657209,1716286254483,-1061.0,0.0003528,2]
[327657210,1716286254492,-154.81828761,0.00035295,2]
[327657211,1716286254502,-292.60460719,0.00035302,4]
[327657212,1716286254511,-231.15962765,0.00035302,4]
[327657213,1716286254520,-3118.45281985,0.00035302,4]
[327657214,1716286254531,-237.20973575,0.00035302,4]
[327657215,1716286254541,-5456.75715038,0.00035302,4]
[327657216,1716286254550,-500.0,0.00035303,6]
[327657217,1716286254560,-9480.5599931,0.00035303,4]
[327657218,1716286254569,-500.0,0.00035304,6]
[327657219,1716286254578,-500.0,0.00035304,6]
[327657220,1716286254587,-577.7,0.00035304,6]
[327657221,1716286254596,-500.0,0.00035304,6]
[327657222,1716286254605,-500.0,0.00035304,6]
[327657223,1716286254614,-500.0,0.00035304,6]
[327657224,1716286254623,-500.0,0.00035304,6]
[327657225,1716286254632,-500.0,0.00035304,6]
[327657226,1716286254641,-500.0,0.00035304,6]
[327657227,1716286254651,-500.0,0.00035304,6]
[327657228,1716286254660,-500.0,0.00035304,6]
[327657229,1716286254669,-508.6755456,0.00035304,6]
[327657230,1716286254679,-500.0,0.00035304,6]
[327657231,1716286254688,-506.53903529,0.00035304,6]
[327657232,1716286254697,-500.0,0.00035304,6]
[327657233,1716286254707,-500.0,0.00035304,6]
[327657234,1716286254716,-500.0,0.00035304,6]
[327657235,1716286254725,-500.0,0.00035304,6]
[327657236,1716286254735,-500.0,0.00035304,6]
[327657237,1716286254744,-503.83664714,0.00035304,6]
[327657238,1716286254753,-500.0,0.00035304,6]
[327657239,1716286254763,-500.0,0.00035304,6]
[327657240,1716286254773,-500.0,0.00035304,6]
[327657241,1716286254783,-500.0,0.00035304,6]
[327657242,1716286254792,-500.0,0.00035304,6]
[327657243,1716286254801,-500.0,0.00035304,6]
[327657244,1716286254811,-500.0,0.00035304,6]
[327657245,1716286254820,-500.0,0.00035304,6]
[327657246,1716286254829,-500.0,0.00035304,6]
[327657247,1716286254838,-500.0,0.00035304,6]
[327657248,1716286254847,-500.0,0.00035304,6]
[327657249,1716286254856,-500.0,0.00035304,6]
[327657250,1716286254866,-500.0,0.00035304,6]
[327657251,1716286254876,-538.18,0.00035304,6]
[327657252,1716286254884,-500.0,0.00035304,6]
[327657253,1716286254893,-500.0,0.00035304,6]
[327657254,1716286254903,-500.0,0.00035304,6]
[327657255,1716286254912,-500.0,0.00035304,6]
[327657256,1716286254921,-500.0,0.00035304,6]
[327657257,1716286254930,-510.26868003,0.00035304,6]
[327657258,1716286254939,-500.0,0.00035304,6]
[327657259,1716286254949,-512.59980581,0.00035304,6]
[327657260,1716286254958,-500.0,0.00035304,6]
[327657261,1716286254967,-500.0,0.00035304,6]
[327657262,1716286254976,-500.0,0.00035304,6]
[327657263,1716286254985,-471.33043796,0.00035304,6]
[327657264,1716286254994,-500.0,0.00035304,6]
[327657265,1716286255004,-500.0,0.00035304,6]
[327657266,1716286255013,-500.0,0.00035304,6]
[327657267,1716286255022,-609.43,0.00035304,6]
[327657268,1716286255031,-500.0,0.00035304,6]
[327657269,1716286255040,-500.0,0.00035304,6]
[327657270,1716286255050,-471.12142659,0.00035304,6]
[327657271,1716286255059,-500.0,0.00035304,6]
[327657272,1716286255068,-500.0,0.00035304,6]
[327657273,1716286255083,-500.0,0.00035304,6]
[327657274,1716286255093,-500.0,0.00035304,6]
[327657275,1716286255102,-578.37,0.00035304,6]
[327657276,1716286255111,-500.0,0.00035304,6]
[327657277,1716286255121,-500.0,0.00035304,6]
[327657278,1716286255130,-500.0,0.00035304,6]
[327657279,1716286255139,-500.0,0.00035304,6]
[327657280,1716286255148,-500.0,0.00035304,6]
[327657281,1716286255160,-500.0,0.00035304,6]
[327657282,1716286255171,-500.0,0.00035304,6]
[327657283,1716286255180,-500.0,0.00035304,6]
[327657284,1716286255189,-500.0,0.00035304,6]
[327657285,1716286255198,-399.18848448,0.00035304,6]
[327657286,1716286255207,-500.0,0.00035304,6]
[327657287,1716286255216,-500.0,0.00035304,6]
[327657288,1716286255225,-504.10160552,0.00035304,6]
[327657289,1716286255234,-500.0,0.00035304,6]
[327657290,1716286255243,-500.0,0.00035304,6]
[327657291,1716286255252,-500.0,0.00035304,6]
[327657292,1716286255261,-501.55,0.00035304,6]
[327657293,1716286255271,-506.01348792,0.00035304,6]
[327657294,1716286255281,-500.0,0.00035304,6]
[327657295,1716286255291,-500.0,0.00035304,6]
[327657296,1716286255300,-503.23030599,0.00035304,6]
[327657297,1716286255310,-500.0,0.00035304,6]
[327657298,1716286255319,-502.88643841,0.00035304,6]
[327657299,1716286255328,-500.0,0.00035304,6]
[327657300,1716286255338,-505.23167219,0.00035304,6]
[327657301,1716286255347,-505.02999292,0.00035304,6]
[327657302,1716286255356,-500.0,0.00035304,6]
[327657303,1716286255365,-500.0,0.00035304,6]
[327657304,1716286255375,-502.95490972,0.00035304,6]
[327657305,1716286255385,-500.0,0.00035304,6]
[327657306,1716286255394,-500.0,0.00035304,6]
[327657307,1716286255404,-520.26,0.00035304,6]
[327657308,1716286255413,-513.98135343,0.00035304,6]
[327657309,1716286255422,-500.0,0.00035304,6]
[327657310,1716286255431,-500.0,0.00035304,6]
[327657311,1716286255440,-500.0,0.00035304,6]
[327657312,1716286255450,-500.0,0.00035304,6]
[327657313,1716286255459,-500.0,0.00035304,6]
[327657314,1716286255468,-500.0,0.00035304,6]
[327657315,1716286255477,-500.0,0.00035304,6]
[327657316,1716286255486,-500.0,0.00035304,6]
[327657317,1716286255495,-500.0,0.00035304,6]
[327657318,1716286255504,-500.0,0.00035304,6]
[327657319,1716286255514,-500.0,0.00035304,6]
[327657320,1716286255524,-500.0,0.00035304,6]
[327657321,1716286255533,-588.5376254,0.00035304,6]
[327657322,1716286255542,-500.0,0.00035304,6]
[327657323,1716286255552,-500.0,0.00035304,6]
[327657324,1716286255562,-500.0,0.00035304,6]
[327657325,1716286255571,-500.0,0.00035304,6]
[327657326,1716286255581,-500.0,0.00035304,6]
[327657327,1716286255590,-500.0,0.00035304,6]
[327657328,1716286255603,-500.0,0.00035304,6]
[327657329,1716286255613,-570.0,0.00035304,6]
[327657330,1716286255622,-500.0,0.00035304,6]
[327657331,1716286255631,-500.0,0.00035304,6]
[327657332,1716286255641,-500.0,0.00035304,6]
[327657333,1716286255650,-500.0,0.00035304,6]
[327657334,1716286255659,-500.0,0.00035304,6]
[327657335,1716286255668,-504.48635875,0.00035304,6]
[327657336,1716286255678,-640.46,0.00035304,6]
[327657337,1716286255687,-504.59582974,0.00035304,6]
[327657338,1716286255696,-181.9782735,0.00035304,6]
[327657339,1716286255706,-1000.0,0.00035304,6]
[327657340,1716286255715,-500.0,0.00035304,6]
[327657341,1716286255724,-500.0,0.00035304,6]
[327657342,1716286255734,-500.0,0.00035304,6]
[327657343,1716286255743,-500.0,0.00035304,6]
[327657344,1716286255752,-500.0,0.00035304,6]
[327657345,1716286255761,-500.0,0.00035304,6]
[327657346,1716286255770,-500.0,0.00035304,2]
[327657347,1716286255781,-500.0,0.00035304,6]
[327657348,1716286255791,-500.0,0.00035304,6]
[327657349,1716286255800,-503.78027413,0.00035304,6]
[327657350,1716286255810,-500.0,0.00035304,6]
[327657351,1716286255819,-500.0,0.00035304,6]
[327657352,1716286255829,-500.0,0.00035304,6]
[327657353,1716286255838,-500.0,0.00035304,6]
[327657354,1716286255847,-500.0,0.00035304,6]
[327657355,1716286255857,-517.63,0.00035304,6]
[327657356,1716286255866,-581.9,0.00035304,6]
[327657357,1716286255875,-500.0,0.00035304,6]
[327657358,1716286255884,-507.07924165,0.00035304,6]
[327657359,1716286255894,-505.80931685,0.00035304,6]
[327657360,1716286255904,-500.0,0.00035304,6]
[327657361,1716286255913,-500.0,0.00035304,6]
[327657362,1716286255923,-504.51516667,0.00035304,6]
[327657363,1716286255932,-500.0,0.00035304,6]
[327657364,1716286255941,-500.0,0.00035304,6]
[327657365,1716286255951,-500.0,0.00035304,6]
[327657366,1716286255960,-500.0,0.00035304,6]
[327657367,1716286255969,-500.0,0.00035304,6]
[327657368,1716286255979,-500.0,0.00035304,6]
[327657369,1716286255988,-500.0,0.00035304,6]
[327657370,1716286255997,-500.0,0.00035304,6]
[327657371,1716286256009,-289.79475784,0.00035304,6]